Cogmind - Beta 14 @@@ ROGUE MODE // 2024.11.30 @ 21:14:33 Player: akira Result: Destroyed by S-10 Pest with Light Assault Rifle Performance ------------- Evolutions (2) 1000 Regions Visited (7) 1400 Robots Destroyed (84) 420 Value Destroyed (3597) 3597 Prototype IDs (24) 480 Alien Tech Used (0) 0 Bonus (1348) 1348 TOTAL SCORE: 8245 Bonus ------- High Alert Combat Kills 348 Entered Garrisons 200 Used RIF Installer 500 Aligned with FarCom 300 Cogmind --------- Core Integrity 0/550 Matter 295/300 Energy 100/100 System Corruption 4% Temperature Cool (0) Movement Core (100) Ox1 Location -8/Materials Parts ------- > --- POWER (1) -------- (None) > --- PROPULSION (3) --- (None) > --- UTILITY (5) ------ System Shield Relay Coupler [Grunt] (12) > --- WEAPON (2) ------- Improved Datajack Remote Datajack > --- INVENTORY (5) ---- Hacking Suite Relay Coupler [NC] (25) Relay Coupler [NC] (32) Relay Coupler [Sentry] (18) Relay Coupler [Sentry] (23) Peak State ------------ > --- POWER ------------ Reinforced Deuterium Engine > --- PROPULSION ------- Medium Treads Improved Medium Treads Improved Medium Treads > --- UTILITY ---------- Improved Cooling System High-capacity Storage Unit Improved Heavy Armor Plating System Shield > --- WEAPON ----------- Assault Cannon Magnetic Acceleration Cannon > --- INVENTORY -------- Medium Treads Medium Treads Aluminum Leg Carbon-fiber Leg Armored Wheel Small Storage Unit Large Matter Pod Structural Scanner Signal Interpreter Seismic Detector Targeting Computer Weapon Cycler Improved Heavy Armor Plating Hacking Suite EM Pulse Cannon Improved Datajack [Rating: 48] Favorites ----------- Power Reinforced Deuterium Engine Engine Reinforced Deuterium Engine Power Core Light Nuclear Core Propulsion Medium Treads Treads Medium Treads Leg Aluminum Leg Wheel Armored Wheel Utility High-capacity Storage Unit Device Improved Cooling System Storage High-capacity Storage Unit Hackware System Shield Protection Improved Heavy Armor Plating Weapon Particle Gun Energy Gun Particle Gun Energy Cannon Ion Cannon Ballistic Gun Light Assault Rifle Ballistic Cannon Assault Cannon Launcher Rocket Launcher Special Weapon Remote Datajack Slashing Weapon Longsword +1 Special Melee Weapon Improved Datajack Build | -11 -10 -10 -10 -9 -8 -8 -8 ------- Run | Yrd Mat Min Exi Min Mat Gar Mat Slots Evolved 4 | . . . . . 4 . . Power . | . . . . . . . . Propulsion 1 | . . . . . 1 . . Utility 3 | . . . . . 3 . . Weapon . | . . . . . . . . Parts Attached 95 | 8 2 4 . 3 25 28 25 Power 8 | 1 . 2 . . 3 1 1 Engine 6 | 1 . 2 . . 2 1 . Core 2 | . . . . . 1 . 1 Reactor . | . . . . . . . . Propulsion 22 | 3 1 . . . 6 8 4 Treads 18 | 1 . . . . 6 8 3 Leg 3 | 2 . . . . . . 1 Wheel 1 | . 1 . . . . . . Hover . | . . . . . . . . Flight . | . . . . . . . . Utility 27 | 2 1 1 . 1 5 8 9 Device 11 | 1 . . . . 2 3 5 Storage 2 | 1 1 . . . . . . Processor . | . . . . . . . . Hackware 5 | . . . . . 1 1 3 Protection 9 | . . 1 . 1 2 4 1 Artifact . | . . . . . . . . Weapon 38 | 2 . 1 . 2 11 11 11 Energy Gun 13 | 1 . 1 . 1 2 4 4 Energy Cannon 4 | . . . . . . 1 3 Ballistic Gun 2 | 1 . . . . 1 . . Ballistic Cannon 7 | . . . . . 2 5 . Launcher 1 | . . . . . 1 . . Special Weapon 4 | . . . . . 1 . 3 Impact Weapon . | . . . . . . . . Slashing Weapon 6 | . . . . 1 4 1 . Piercing Weapon . | . . . . . . . . Special Melee Weapon 1 | . . . . . . . 1 Unidentified Prototypes 1 | . . . . . . . 1 Parts Lost 30 | . 1 3 . 1 3 14 8 Power 5 | . . 2 . . 1 1 1 Propulsion 11 | . . . . . 1 6 4 Utility 6 | . 1 . . 1 1 2 1 Weapon 8 | . . 1 . . . 5 2 Highest Loss Streak 6 | . 1 2 . 1 1 6 6 To Critical Strikes . | . . . . . . . . Average Slot Usage (%) 92 | . 94 98 100 99 93 89 86 Engine 9 | . 14 13 14 14 7 8 6 Treads 18 | . . . . . 25 26 23 Leg 4 | . 18 14 14 14 . . . Wheel 3 | . 9 14 14 14 . . . Device 6 | . 9 . . . 9 7 4 Storage 10 | . 14 14 14 14 9 9 8 Hackware 8 | . . . . . 7 10 17 Protection 9 | . . 12 14 13 15 9 6 Energy Gun 9 | . 14 14 14 14 . 9 12 Ballistic Gun 4 | . 14 14 14 13 1 . . Ballistic Cannon 3 | . . . . . 5 6 . Slashing Weapon 1 | . . . . . 7 . . Peak Build Rating 48 | 7 9 9 10 17 34 48 43 Average Rating 29 | 4 7 8 9 11 29 41 36 On Entrance 15 | . 7 8 9 10 17 32 43 Naked Turns . | . . . . . . . . Heaviest Build 86 | 11 46 49 49 52 63 86 79 Greatest Support 88 | 20 20 12 12 12 73 88 86 Greatest Overweight (x) 4 | . 3 4 4 4 4 1 3 Average Overweight (x) 1 | . 1 3 4 4 . . . Largest Inventory Capacity 20 | 8 20 20 20 20 20 20 20 Average Capacity 19 | 7 15 20 20 20 20 20 19 Most Carried 20 | 7 14 17 18 18 20 20 20 Average Carried 17 | 5 11 14 17 17 18 18 17 Final Capacity 20 | 8 20 20 20 20 20 20 5 Final Carried 20 | 6 14 17 18 17 20 20 5 Class Distribution -------------------- 64% | Mutant 30% | Bothacker-Mutant 4% | Scavenger-Mutant Dominant Class ---------------- Mutant | -10/Materials Mutant | -10/Mines Mutant | -10/Exiles Mutant | -9/Mines Mutant | -8/Materials Mutant | -8/Garrison Bothacker-Mutant | -8/Materials Resources | -11 -10 -10 -10 -9 -8 -8 -8 ----------- Run | Yrd Mat Min Exi Min Mat Gar Mat Matter Collected 2414 | 243 123 156 . 27 496 1001 368 Remotely . | . . . . . . . . Salvage Created 2724 | 10 165 126 . 116 800 1049 458 Parts 140 | 3 12 10 . 7 42 47 19 Haulers Intercepted 5 | . . . . . 4 . 1 Recyclers Shooed . | . . . . . . . . Parts Field Recycled . | . . . . . . . . Retrieved Matter . | . . . . . . . . Parts Self-Destructed . | . . . . . . . . Prevented . | . . . . . . . . Kills | -11 -10 -10 -10 -9 -8 -8 -8 ------- Run | Yrd Mat Min Exi Min Mat Gar Mat Combat Hostiles Destroyed 73 | . 7 5 . 3 17 32 9 Melee 13 | . . . . 3 10 . . Guns 36 | . 7 5 . . 2 14 8 Cannons 23 | . . . . . 5 17 1 Classes Destroyed 11 | 1 3 . . 1 3 2 1 Builder 1 | . . . . . 1 . . Tunneler 1 | 1 . . . . . . . Hauler 5 | . . . . . 4 . 1 Recycler 1 | . . . . . . . 1 Operator 3 | . 1 . . . 2 . . Swarmer 25 | . 5 4 . . 6 7 3 Grunt 35 | . 2 1 . 2 6 19 5 Duelist 1 | . . . . 1 . . . Sentry 8 | . . . . . 5 2 1 Programmer 3 | . . . . . . 3 . Behemoth 1 | . . . . . . 1 . Best Kill Streak 5 | 1 3 3 . 3 4 4 5 Combat Bots Only 4 | . 3 3 . 3 4 4 4 Max Kills in Single Turn 2 | 1 1 1 . 1 1 2 2 Gunslinging . | . . . . . . . . Exploded . | . . . . . . . . Melee 1 | . . . . 1 1 . . Uniques/NPCs Destroyed . | . . . . . . . . Combat | -11 -10 -10 -10 -9 -8 -8 -8 -------- Run | Yrd Mat Min Exi Min Mat Gar Mat Hostile Shots Fired 588 | . 36 29 . 20 106 230 167 Missed 144 | . 14 7 . 7 33 56 27 Damage Taken 6352 | . 254 217 . 229 909 2836 1907 Core 687 | . 87 26 . 24 102 70 378 Absorbed by Shields . | . . . . . . . . Redirected to Shielding 26 | . . . . . 21 5 . Core Remaining (%) 72 | 100 . . . 45 . . . Volleys Fired 266 | 6 27 16 . 2 42 114 59 Largest 2 | 2 2 2 . 2 2 2 2 Hottest 130 | 60 60 60 . 85 69 130 130 Shots Fired 438 | 10 51 32 . 4 50 203 88 Gun 223 | 10 51 32 . 4 13 72 41 Cannon 207 | . . . . . 37 131 39 Launcher . | . . . . . . . . Special 8 | . . . . . . . 8 Kinetic 216 | 6 27 16 . 2 50 115 . Thermal 175 | 4 24 2 . 2 . 63 80 Explosive . | . . . . . . . . Electromagnetic 39 | . . 14 . . . 25 . Robot Hit Streak 18 | 6 5 5 . 2 11 18 6 Robot Miss Streak 13 | 2 10 5 . 2 13 4 4 Penetration Max . | . . . . . . . . Secondary Targets 2 | . . 1 . . . 1 . Max Gunslinging Chain 1 | . . 1 . . . 1 . Shots Hit Robots 289 | 7 25 13 . 12 68 122 42 Core Hits 113 | 1 13 8 . 3 26 45 17 Critical Kills . | . . . . . . . . Critical Parts Destroyed . | . . . . . . . . Critical Strikes 19 | . . . . 1 5 13 . Burn 2 | . . . . . . 2 . Blast 5 | . . . . . . 5 . Corrupt 1 | . . . . . . 1 . Sever 11 | . . . . 1 5 5 . Melee Attacks 78 | . . . . 10 54 12 2 Impact . | . . . . . . . . Slashing 76 | . . . . 10 54 12 . Piercing . | . . . . . . . . Sneak Attacks 5 | . . . . . 5 . . Combat Hostiles . | . . . . . . . . Follow-up Attacks . | . . . . . . . . Damage Inflicted 7624 | 60 233 130 . 403 2675 3373 750 Guns 1758 | 60 233 130 . 20 197 601 517 Cannons 2800 | . . . . . 443 2124 233 Explosions 90 | . . . . . . 90 . Melee 2976 | . . . . 383 2035 558 . Ramming . | . . . . . . . . Kinetic 2609 | 30 107 50 . 6 640 1776 . Thermal 1467 | 30 126 10 . 14 . 537 750 Explosive . | . . . . . . . . Electromagnetic 572 | . . 70 . . . 502 . Impact . | . . . . . . . . Slashing 2976 | . . . . 383 2035 558 . Piercing . | . . . . . . . . Highest Corruption 4 | . . . . . 3 4 4 Average Corruption 3 | . . . . . 2 3 4 Corruption Purged . | . . . . . . . . Corruption Blocked . | . . . . . . . . Effects 114 | . . . . . 19 68 27 Message Errors 33 | . . . . . 6 20 7 Matter Fused 33 | . . . . . 5 22 6 Heat Flow Errors 14 | . . . . . 1 8 5 Energy Discharges 10 | . . . . . 1 7 2 Parts Rejected 2 | . . . . . 2 . . Data Loss (minor) 10 | . . . . . 2 4 4 Data Loss (major) 5 | . . . . . . 3 2 Misfires 4 | . . . . . 2 2 . Weapon Failures 3 | . . . . . . 2 1 Overload Shots . | . . . . . . . . Overflow Damage 252 | . . . . 9 213 30 . Projectiles 32 | . . . . . 2 30 . Explosions . | . . . . . . . . Melee 220 | . . . . 9 211 . . Knockbacks 15 | . . . . . 1 14 . Impact . | . . . . . . . . Kinetic 15 | . . . . . 1 14 . Secondary . | . . . . . . . . Self-Inflicted Damage 19 | . . . . . . 19 . Shots 1 | . . . . . . 1 . Rammed 1 | . . . . . . . 1 Targets Rammed 1 | . . . . . . . 1 Kicked . | . . . . . . . . Crushed . | . . . . . . . . Highest Temperature 503 | 20 132 79 . 89 263 264 503 Average Temperature 89 | 13 45 28 . 47 47 68 142 Received Heat Transfer 2670 | . 72 63 . 54 342 1122 1017 Effects 7 | . . . . . . . 7 Shutdowns 3 | . . . . . . . 3 Energy Bleed 1 | . . . . . . . 1 Interference 1 | . . . . . . . 1 Matter Decay 1 | . . . . . . . 1 Short Circuit 1 | . . . . . . . 1 Siege Activations . | . . . . . . . . Robots Corrupted 1 | . . . . . . 1 . Combat Hostiles 1 | . . . . . . 1 . Parts Fried . | . . . . . . . . Impact Corruptions . | . . . . . . . . Robots Melted . | . . . . . . . . Combat Hostiles . | . . . . . . . . Parts Melted 5 | . 1 . . . . 1 3 Heat Transferred 3144 | 75 300 25 . 37 . 1227 1480 Parts Sabotaged . | . . . . . . . . Parts Stolen . | . . . . . . . . Parts Stripped . | . . . . . . . . Power Chain Reactions 1 | . . . . . . 1 . Alert | -11 -10 -10 -10 -9 -8 -8 -8 ------- Run | Yrd Mat Min Exi Min Mat Gar Mat Peak Influence 2014 | 5 152 125 . 70 431 2014 1048 Initial 981 | . 3 19 . . 27 131 981 Average 491 | 1 60 39 . 2 142 857 744 Maximum Alert Level 5 | . . . . . 2 5 3 Low Security (%) 44 | 100 100 100 . 100 67 16 . Level 1 12 | . . . . . 29 14 6 Level 2 13 | . . . . . 3 14 43 Level 3 16 | . . . . . . 21 50 Level 4 6 | . . . . . . 15 . Level 5 6 | . . . . . . 16 . High Security . | . . . . . . . . Max Security . | . . . . . . . . Squads Dispatched 7 | . . . . . 4 . 3 Investigation 1 | . . . . . . . 1 Extermination . | . . . . . . . . Reinforcement 6 | . . . . . 4 . 2 Assault . | . . . . . . . . Garrison . | . . . . . . . . Intercept . | . . . . . . . . Searches Triggered . | . . . . . . . . Construction Impeded . | . . . . . . . . Haulers Reinforced . | . . . . . . . . Active Scanning Responses . | . . . . . . . . Cargo Convoy Interrupts . | . . . . . . . . Stealth | -11 -10 -10 -10 -9 -8 -8 -8 --------- Run | Yrd Mat Min Exi Min Mat Gar Mat Distress Signals 7 | . 2 . . . 2 . 3 Communications Jammed . | . . . . . . . . Distress Signals . | . . . . . . . . Times Spotted 132 | . 18 7 . 3 38 33 33 Peak Tracking Total 9 | . 5 3 . 3 9 4 9 Tactical Retreats 10 | . 3 1 . . 3 . 3 Traps | -11 -10 -10 -10 -9 -8 -8 -8 ------- Run | Yrd Mat Min Exi Min Mat Gar Mat Traps Triggered 9 | . 1 . . . 2 6 . Indirectly . | . . . . . . . . Trap Hack Attempts . | . . . . . . . . Triggered . | . . . . . . . . Disarmed . | . . . . . . . . Reprogrammed . | . . . . . . . . Reused . | . . . . . . . . Traps Extracted . | . . . . . . . . Installed . | . . . . . . . . Triggered . | . . . . . . . . Machines | -11 -10 -10 -10 -9 -8 -8 -8 ---------- Run | Yrd Mat Min Exi Min Mat Gar Mat Machines Disabled 5 | . . . . . . 5 . Max in Single Turn 1 | . . . . . . 1 . Garrison Relay 5 | . . . . . . 5 . Machines Repaired . | . . . . . . . . Machines Dismantled . | . . . . . . . . Machines Sabotaged . | . . . . . . . . Overloaded Fab Kills . | . . . . . . . . Hacking | -11 -10 -10 -10 -9 -8 -8 -8 --------- Run | Yrd Mat Min Exi Min Mat Gar Mat Machines Accessed 18 | . 7 . 1 . 5 2 3 Terminals 15 | . 7 . . . 3 2 3 Fabricators . | . . . . . . . . Repair Stations . | . . . . . . . . Recycling Units . | . . . . . . . . Scanalyzers 1 | . . . . . 1 . . Garrison Access 1 | . . . . . 1 . . Total Hacks 42 | . 19 . 1 . 10 4 8 Successful 23 | . 9 . 1 . 9 1 3 Failed 19 | . 10 . . . 1 3 5 Catastrophic 2 | . . . . . . 1 1 Database Lockouts . | . . . . . . . . Manual 27 | . 14 . 1 . 6 . 6 Terminals 37 | . 19 . . . 6 4 8 Fabricators . | . . . . . . . . Repair Stations . | . . . . . . . . Recycling Units . | . . . . . . . . Scanalyzers 3 | . . . . . 3 . . Garrison Access 1 | . . . . . 1 . . Terminal Hacks 7 | . 3 . 1 . 1 1 1 Robot Schematic 1 | . 1 . . . . . . Robot Analysis 1 | . 1 . . . . . . Unreport Threat 2 | . . . . . 1 . 1 Hauler Manifests 1 | . 1 . . . . . . Security Stations 1 | . . . . . . 1 . Derelict Proto ID Bank 1 | . . . 1 . . . . Fabricator Hacks . | . . . . . . . . Repair Station Hacks . | . . . . . . . . Recycling Unit Hacks . | . . . . . . . . Scanalyzer 3 | . . . . . 3 . . Insert Component 1 | . . . . . 1 . . Analyze 2 | . . . . . 2 . . Garrison Access Hacks 1 | . . . . . 1 . . Unlock Access 1 | . . . . . 1 . . Unauthorized Hacks 12 | . 6 . . . 4 . 2 Terminals 12 | . 6 . . . 4 . 2 Assimilate 1 | . . . . . 1 . . Botnet 11 | . 6 . . . 3 . 2 Fabricators . | . . . . . . . . Repair Stations . | . . . . . . . . Recycling Units . | . . . . . . . . Scanalyzers . | . . . . . . . . Garrison Access . | . . . . . . . . Data Cores Recovered 1 | . 1 . . . . . . Used . | . . . . . . . . Hacking Detections 12 | . 7 . . . 1 1 3 Full Trace Events 1 | . . . . . . 1 . Feedback Events . | . . . . . . . . Feedback Blocked . | . . . . . . . . Robot Schematics Acquired 1 | . 1 . . . . . . Robots Built . | . . . . . . . . Authchips . | . . . . . . . . Time . | . . . . . . . . Total Robot Build Rating . | . . . . . . . . Part Schematics Acquired 1 | . . . . . 1 . . Parts Built . | . . . . . . . . Authchips . | . . . . . . . . Time . | . . . . . . . . Total Part Build Rating . | . . . . . . . . Parts Repaired . | . . . . . . . . Time . | . . . . . . . . Parts Recycled . | . . . . . . . . Recycled Matter . | . . . . . . . . Retrieved Matter . | . . . . . . . . Retrieved Components . | . . . . . . . . Parts Scanalyzed 1 | . . . . . 1 . . Part Schematics Acquired 1 | . . . . . 1 . . Parts Damaged . | . . . . . . . . Bothacking | -11 -10 -10 -10 -9 -8 -8 -8 ------------ Run | Yrd Mat Min Exi Min Mat Gar Mat Used RIF Installer 1 | . . . . . . 1 . Robots Hacked 5 | . . . . . . . 5 Non-combat 2 | . . . . . . . 2 Combat 3 | . . . . . . . 3 Robot Hacks Applied 6 | . . . . . . . 6 parse_system 1 | . . . . . . . 1 purge_threat 2 | . . . . . . . 2 formatsys_high 3 | . . . . . . . 3 Relay Couplers Released 20 | . . . . . . 20 . Machine Destruction 20 | . . . . . . 20 . Attached 3 | . . . . . . . 3 Fabnet Peak Effective % . | . . . . . . . . Robots Rewired . | . . . . . . . . Allies Hacked . | . . . . . . . . Hacks Repelled . | . . . . . . . . Allies | -11 -10 -10 -10 -9 -8 -8 -8 -------- Run | Yrd Mat Min Exi Min Mat Gar Mat Total Allies 4 | . . 1 . . . . 3 Largest Group 2 | . . 1 . . . . 2 Highest-Rated Group 32 | . . 31 . . . . 32 Highest-Rated Ally 31 | . . 31 . . . . 16 Total Orders . | . . . . . . . . Ally Attacks 22 | . . 6 . . . . 16 Total Damage 251 | . . 103 . . . . 148 Kills 3 | . . 2 . . . . 1 Allies Corrupted . | . . . . . . . . Allies Melted . | . . . . . . . . Intel | -11 -10 -10 -10 -9 -8 -8 -8 ------- Run | Yrd Mat Min Exi Min Mat Gar Mat Robot Analysis Total 1 | . 1 . . . . . . Derelict Logs Recovered 3 | . . 1 . 2 . . . Drone Launches . | . . . . . . . . Drone Recoveries . | . . . . . . . . Exploration | -11 -10 -10 -10 -9 -8 -8 -8 ------------- Run | Yrd Mat Min Exi Min Mat Gar Mat Turns Passed 8539 | 112 849 597 319 490 1658 3246 1268 Spaces Moved 4148 | 63 558 361 213 202 688 1631 432 Core 13 | 2 . . . . . . 11 Treads 2709 | 3 . . . . 677 1631 398 Legs 307 | 58 226 . . . . . 23 Wheels 1119 | . 332 361 213 202 11 . . Hover . | . . . . . . . . Flight . | . . . . . . . . Fastest Speed 50 | 50 90 135 150 150 150 155 50 Average Speed 160 | 119 128 148 150 150 163 167 195 Slowest Speed 330 | 160 135 150 150 150 240 240 330 Overloaded Moves . | . . . . . . . . Propulsion Burnouts . | . . . . . . . . Robots Hopped . | . . . . . . . . Cave-ins Triggered . | . . . . . . . . Exploration Rate (%) 47 | 6 75 65 42 43 57 67 27 Regions Visited 7 Branch Regions 3 Pre-discovered Areas 1 | . . . . 1 . . . Known Exits Taken 1 | . . . . . 1 . . Unknown Exits Taken 5 | 1 1 1 1 1 . . . Scrap Searched 3 | . . 3 . . . . . Spaces Dug 17 | . . . . . 10 . 7 Terrain Destroyed 38 | . . . . . 20 9 9 Melee 10 | . . . . . 10 . . Projectile 21 | . . . . . 10 2 9 AOE 7 | . . . . . . 7 . Terrain Rammed . | . . . . . . . . Walls Destroyed . | . . . . . . . . Machines Disabled . | . . . . . . . . Actions | -11 -10 -10 -10 -9 -8 -8 -8 --------- Run | Yrd Mat Min Exi Min Mat Gar Mat Total 5555 | 88 645 392 213 374 1119 1949 775 Wait 845 | 4 47 6 . 158 281 115 234 Move 4142 | 62 557 360 212 201 688 1630 432 Hop . | . . . . . . . . Pick Up 71 | 7 10 6 1 . 16 27 4 Fast Attach 18 | 6 . 1 . . 5 1 5 Attach 38 | 2 . 3 . 1 8 16 8 Detach 6 | 1 . . . . 2 . 3 Swap 39 | . 2 . . 2 12 11 12 Drop 45 | . 2 . . . 11 17 15 Fire 266 | 6 27 16 . 2 42 114 59 Melee 78 | . . . . 10 54 12 2 Ram 1 | . . . . . . . 1 Kick . | . . . . . . . . Crush . | . . . . . . . . Escape Stasis 6 | . . . . . . 6 . Rewire . | . . . . . . . . Trap . | . . . . . . . . Miscellaneous . | . . . . . . . . Route ------- -11/Scrapyard -10/Materials (discovered 4 exits: [*Mat x3] / [*Min]) -10/Mines (discovered 2 exits: [*Mat] / *Exi) -10/Exiles -9/Mines -8/Materials (discovered 3 exits: *Fac x2 / Gar) -8/Garrison (discovered 3 exits: *Mat x3) -8/Materials History --------- Turn | Location | Event 15 | -11/Scrapyard | Discovered new exit (range 16) 113 | -11/Scrapyard | Entered Materials 172 | -10/Materials | Discovered new exit (range 16) 318 | -10/Materials | Build established: Mutant 328 | -10/Materials | Discovered new exit (range 10) 699 | -10/Materials | Discovered new exit (range 11) 780 | -10/Materials | Discovered new exit (range 14) 962 | -10/Materials | Entered Mines 968 | -10/Mines | Met a Derelict bent on vengeance 1197 | -10/Mines | Learned location of 1 exit from Materials 1223 | -10/Mines | Discovered new exit (range 11) 1226 | -10/Mines | Received a Mining Laser from a helpful Derelict 1553 | -10/Mines | Deemed a non-threat by the Exiles lab entrance 1553 | -10/Mines | Discovered new exit (range 5) 1559 | -10/Mines | Entered Exiles 1597 | -10/Exiles | Met 8R-AWN 1622 | -10/Exiles | Met EX-HEX 1667 | -10/Exiles | Met EX-BIN 1685 | -10/Exiles | Aligned with FarCom system 1687 | -10/Exiles | Given EX-Vault access code 1723 | -10/Exiles | Opened EX-Vault 1730 | -10/Exiles | Found Longsword +1 1760 | -10/Exiles | Warned to stay clear of 0b10 Research branches 1862 | -10/Exiles | Discovered new exit (range 14) 1878 | -10/Exiles | Left Exiles lab with Longsword +1 1878 | -10/Exiles | Entered Mines 1899 | -9/Mines | Learned location of Recycling (-7) 2015 | -9/Mines | Learned Materials garrison access intel 2042 | -9/Mines | Discovered new exit (range 16) 2349 | -9/Mines | Core integrity fell below 50% 2368 | -9/Mines | Entered Materials 2368 | -8/Materials | Evolved 4 slots: Propulsion x1, Utility x3 2369 | -8/Materials | Identified exit to Factory 2370 | -8/Materials | Loaded intel: 1 garrison access location 3634 | -8/Materials | Discovered exit to Factory (range 16) 4026 | -8/Materials | Identified exit to Garrison 4026 | -8/Materials | Entered Garrison 4118 | -8/Garrison | Triggered checkpoint 4280 | -8/Garrison | Spotted B-75 Beast 4290 | -8/Garrison | Learned Materials security intel 4324 | -8/Garrison | Destroyed B-75 Beast 4356 | -8/Garrison | Lost 6 parts (1p2n1u2w) 4636 | -8/Garrison | Triggered checkpoint 4644 | -8/Garrison | Triggered checkpoint 4803 | -8/Garrison | Discovered new exit (range 15) 4888 | -8/Garrison | Triggered checkpoint 4920 | -8/Garrison | Triggered checkpoint 4976 | -8/Garrison | Triggered checkpoint 5104 | -8/Garrison | Discovered new exit (range 10) 5140 | -8/Garrison | Triggered checkpoint 5184 | -8/Garrison | Triggered checkpoint 5622 | -8/Garrison | Discovered new exit (range 11) 5638 | -8/Garrison | Installed Relay Interface Framework 5700 | -8/Garrison | Triggered checkpoint 5836 | -8/Garrison | Build established: Scavenger-Mutant 5925 | -8/Garrison | Garrison Relay disabled 6230 | -8/Garrison | Garrison Relay disabled 6237 | -8/Garrison | Build established: Bothacker-Mutant 6484 | -8/Garrison | Triggered checkpoint 6521 | -8/Garrison | Garrison Relay disabled 6641 | -8/Garrison | Garrison Relay disabled 6843 | -8/Garrison | Garrison Relay disabled 7272 | -8/Garrison | Entered Materials 8374 | -8/Materials | Core integrity fell below 50% 8451 | -8/Materials | Lost 6 parts (1p3n1u1w) 8501 | -8/Materials | Core integrity fell below 20% 8540 | -8/Materials | Destroyed by S-10 Pest with Light Assault Rifle Last Messages --------------- Installing primary routines, ETC: 6. 08468_ Trooper 3c reactivates. 08470_ K-01 Serf collects debris. 08473_ W-25 Informer suffers critical hit (Burn). 08474_ K-01 Serf cleans the Recycling Unit. 08479_ Acquired 20 matter. 08482_ Jacked W-25 Informer... >>parse_system Reading system data... 08484_ K-01 Serf cleans the Recycling Unit. 08500_ W-25 Informer sends out distress signal. 08509_ Acquired 25 matter. 08522_ System corrupted: Heat flow error (+248). 08524_ Ion Cannon destroyed. 08526_ Dropped Imp. Heat Sink. 08526_ Dropped Hcp. Storage Unit. 08527_ Dropped Weapon Cycler. 08527_ Carbon-fiber Leg destroyed. 08528_ Acquired Remote Datajack. 08534_ Slammed into S-10 Pest. Map ----- +----------------------------------------------------+ | ?????????????????????????????????????????????????? | | ?????????????????????????????????????????????????? | | ?????????????????????????????????????????????????? | | ?????????????????????????????????????????????????? | | ?????????????????????????????????????????????????? | | ?????????????????????????????????????????????????? | | ?????????????????????????????????????????????????? | | ?????????????????????????????????????????????????? | | ?????????????????????????????????????????????????? | | ?????????????????????????????????????????????????? | | ?????????????????????????????????????????????????? | | ?????????????????????????????????????????????????? | | ?????????????????????????????????????????????????? | | ?????????????????????????????????????????????????? | | ?????????????????????????????????????????????????? | | ?????????????????????????????????????????????????? | | ?????????????????????????????????????????????????? | | ?????????????????????????????????????????????????? | | ?????????????????????????????????????????????????? | | ?????? ????????????????????????????????????????? | | ?????# ????????????????????????????????????????? | | ?????# #???????????????????????????????????????? | | ?????# #???????????????????????????????????????? | | ?????# #???????????????????????????????????????? | | ?????# ########???################?????????????? | | ?????# # ##### @ #?????????? | | ?????# # /s s w #?????????? | | ????## # "" !g#####s k #?????????? | | ????## [ # "T!!!#???# ######## #?????????? | | ????## = # ""!g!#???# #????????????????????? | | ###### =# !!!##### #????????????????????? | | ######% ####/###"T"#g #????????????????????? | | g #????????????????????? | | % #????????????????????? | | "" #????????????????????? | | ######+######+## "Y w """ k#????????????????????? | | ??## ## % # "" """ #????????????????????? | | ??## ## % # """ #????????????????????? | | ??## % *## # ! + ???????????????????? | | ??## !## # [ ] # "??????????????????? | | ??## ## ####+### # ??????????????????? | | ??## ## ## ## #####+##??????????????? | | ??########## ## """ ## # #??????????????? | | ??############### """ ## # #??????????????? | | ????????######### """ ## %/ #??????????????? | | ?????????????#### ## # #??????????????? | | ???????????????## ! ## # #??????????????? | | ???????????????#####+### # #??????????????? | | ???????????????## [ !# ########??????????????? | | ???????????????## # #?????????????????????? | +----------------------------------------------------+ Best States ------------- Heat Dissipation 59 Energy Generation 16 Energy Capacity 290 Matter Stores 300 Matter Capacity 300 Sight Range 16 Terrain Scan Density 10 Armor Coverage 600 Core Shielding 20 Weapon Cycling 15 Evasion (%) 55 Recoil Reduction 3 Offensive Hacking 10 Defensive Hacking 10 Relay Coupler Types 1 Relay Coupler Value 25 Item Schematics ----------------- Med. Treads | -8/Materials | Scanalyzed Robot Schematics ------------------ M-13 Machinist | -10/Materials | Hacked Fabricated ------------ Nothing Alien Tech Used ----------------- None Achievements -------------- None Challenges ------------ None Game ------ Seed WeaponsDamperBooster Manual? 0 Play Time 01:05:34 Cumulative 72.5 hours Start 2024.11.30 @ 18:41:18 End 2024.11.30 @ 21:14:33 Sessions 1 Manual Loads 0 Difficulty Rogue Special Mode None Game No. 73 Rogue 73 Adventurer 0 Explorer 0 Win Type - Total 0 Types 0/0/0/0/0/0/0/0/0 Lore% 10 Gallery% 33 Achievement% 32 Wizard Run 0 Options --------- Layout 2 ASCII 0 Keyboard 0 Movement Mouse Keybinds 0 Fullscreen 2 Font 16/SmallcapsGlow Map View 55x47 Zoom Use 8% Tactical HUD 1 Map Filters NONE Filters NONE Steam 1 RUN: 86b8ebb7-3863-4405-be49-5dd0650a377a